bitfinex-derivatives/quotes_ETHF0:USTF0_20260307
["timestamp","ask_amount","ask_price","bid_price","bid_amount"]
[1772911413913,0.0055843,1966.5,1965.7,0.58098855]
[1772911414313,0.0055843,1966.5,1965.7,2.39022668]
[1772911414513,0.0055843,1966.5,1965.8,0.57723755]
[1772911415016,0.0055843,1966.5,1966.0,0.57723755]
[1772911416313,0.54014798,1967.0,1966.0,0.57723755]
[1772911417310,0.54534721,1967.0,1966.0,0.57723755]
[1772911418016,0.54014798,1966.8,1966.0,0.57723755]
[1772911418218,0.54014798,1966.1,1965.1,0.57723755]
[1772911418417,0.54014798,1965.8,1964.8,0.57723755]
[1772911419220,0.54014798,1965.7,1965.0,0.57723755]
[1772911420716,0.54014798,1965.7,1965.1,0.58219169]
[1772911420918,0.54014798,1965.7,1965.1,0.57723755]
[1772911421916,0.54014798,1965.9,1965.3,0.57723755]
[1772911422415,0.25428,1966.4,1964.8,0.00524803]
[1772911422416,0.54014798,1966.3,1965.5,0.57723755]
[1772911423417,0.54014798,1966.3,1965.7,0.57723755]
[1772911426419,0.25428,1966.4,1965.9,0.57723755]
[1772911426420,0.79442798,1966.4,1965.9,0.57723755]
[1772911426717,0.54014798,1966.3,1965.9,0.57723755]
[1772911427218,0.79442798,1966.4,1965.9,0.57723755]
[1772911427419,0.79442798,1966.4,1966.0,0.58219169]
[1772911427620,0.10064587,1966.4,1966.0,0.57723755]
[1772911428523,0.35492587,1966.4,1966.0,0.58219169]
[1772911429316,6.896,1966.9,1966.0,0.58219169]
[1772911429515,0.09804812,1966.8,1966.0,0.58219169]
[1772911429718,0.09804812,1966.8,1966.0,0.57723755]
[1772911431823,0.0978406,1966.6,1964.9,0.57723755]
[1772911432022,0.0978406,1966.6,1964.9,0.58219169]
[1772911432523,0.0978406,1966.4,1964.9,0.58219169]
[1772911433726,0.25427,1966.5,1965.1,0.57723755]
[1772911433926,0.35690007,1966.5,1965.1,0.57723755]
[1772911434326,0.10263007,1966.4,1965.1,0.57723755]
[1772911437927,0.10263007,1966.4,1965.3,0.57723755]
[1772911438826,0.42729029,1966.5,1965.4,0.00495414]
[1772911439030,0.17302029,1966.8,1965.5,0.57723755]
[1772911439530,0.17302029,1966.8,1965.7,0.57723755]
[1772911440731,0.17302029,1966.8,1965.8,0.57349298]
[1772911443736,0.24633863,1966.9,1965.8,0.57349298]
[1772911448345,0.24633863,1966.9,1965.8,0.56853884]
[1772911448740,0.24633863,1966.9,1966.0,0.55427678]
[1772911450147,0.24633863,1966.9,1966.2,0.55427678]
[1772911450348,0.24633863,1966.9,1966.2,0.56018935]
[1772911450648,0.24633863,1966.9,1966.3,0.00495414]
[1772911455050,0.24633863,1966.9,1966.3,0.55923092]
[1772911456353,0.25548171,1966.7,1966.3,0.00495414]
[1772911457349,0.25425,1966.6,1965.6,40.8]
[1772911457554,0.25582325,1966.3,1965.7,0.55427678]
[1772911458455,0.25582325,1966.3,1965.7,0.55917167]
[1772911463560,0.25582325,1966.3,1965.6,0.55427678]
[1772911464660,0.25582325,1966.3,1965.6,0.55970975]
[1772911465155,1.81716568,1967.0,1965.6,0.55970975]
[1772911465156,0.57492857,1966.1,1965.6,0.55970975]
[1772911465362,0.57492857,1965.9,1965.4,0.55427678]
[1772911466363,0.57492857,1965.9,1965.4,0.55810263]
[1772911467460,0.25433,1966.0,1965.4,0.55810263]
[1772911467663,0.57492857,1966.1,1965.4,0.55810263]
[1772911468163,6.64678853,1966.0,1965.4,0.55810263]
[1772911468358,7.2217171,1965.9,1965.4,0.55810263]
[1772911468564,0.57492857,1965.9,1965.4,0.55810263]
[1772911469258,4.24993189,1966.1,1965.4,0.55810263]
[1772911469460,7.18516021,1966.0,1965.4,0.55810263]
[1772911469759,6.61023164,1965.9,1965.4,0.55810263]
[1772911470366,0.57492857,1965.8,1965.4,0.55810263]
[1772911470565,0.57492857,1965.9,1965.4,0.55810263]
[1772911470766,0.57492857,1966.0,1965.4,0.55810263]
[1772911470966,6.61108006,1965.9,1965.4,0.55810263]
[1772911471164,0.57492857,1966.0,1965.4,0.55810263]
[1772911471364,7.18512209,1965.9,1965.4,0.55810263]
[1772911471564,0.57492857,1965.9,1965.4,0.55810263]
[1772911475465,0.82588092,1966.1,1965.6,0.57131591]
[1772911475665,6.61113244,1966.0,1965.6,0.57131591]
[1772911475865,6.61113244,1965.9,1965.6,0.57131591]
[1772911476066,0.57156092,1966.0,1965.6,0.57131591]
[1772911476366,6.61114747,1965.9,1965.6,0.57131591]
[1772911476567,0.57156092,1966.0,1965.5,0.57131591]
[1772911476766,0.57156092,1965.8,1965.5,0.57131591]
[1772911476967,0.57156092,1965.8,1965.4,0.57514176]
[1772911478467,6.6074615,1965.7,1965.4,0.57514176]
[1772911478766,0.57156092,1965.8,1965.4,0.57514176]
[1772911478966,0.57156092,1965.6,1965.2,0.57131591]
[1772911479468,0.57156092,1965.6,1965.0,0.48516061]
[1772911479971,0.57156092,1965.4,1965.0,0.0053633]
[1772911480268,0.57156092,1965.2,1964.6,0.48516061]
[1772911481173,0.57156092,1965.4,1964.9,0.48326603]
[1772911481474,0.57156092,1965.3,1964.9,0.48915333]
[1772911482072,0.57156092,1965.3,1964.9,0.0058873]
[1772911483566,0.57156092,1965.3,1964.9,0.51455271]
[1772911484274,0.57156092,1965.3,1964.9,0.0058873]
[1772911485075,0.57156092,1965.3,1964.9,0.51551929]
[1772911486880,0.57156092,1965.3,1964.9,0.0058873]
[1772911487078,0.57156092,1965.3,1964.8,0.50954793]
[1772911487479,0.57156092,1965.3,1964.2,0.50954793]
[1772911488078,0.57156092,1965.3,1964.2,0.51384224]
[1772911489277,0.57156092,1964.9,1964.2,0.51384224]
[1772911491981,0.57156092,1964.9,1964.2,0.51042424]
[1772911494177,0.57156092,1964.9,1964.2,0.50968459]
[1772911495283,0.57156092,1964.9,1964.2,0.00429431]
[1772911496078,0.57156092,1964.9,1963.9,0.49749165]
[1772911496280,0.57156092,1964.7,1963.8,0.50178596]
[1772911496973,0.57156092,1964.5,1963.8,0.00444438]
[1772911497173,0.57156092,1964.3,1963.5,0.50310255]
[1772911497376,0.57156092,1964.3,1963.0,0.50310255]
[1772911497585,0.57156092,1964.3,1963.2,0.50310255]
[1772911497980,0.57156092,1964.1,1963.2,0.50310255]
[1772911498180,0.57634174,1964.1,1963.2,0.50762932]
[1772911498578,0.57156092,1963.9,1963.0,0.50310255]
[1772911498982,0.57156092,1963.7,1962.6,41.31568233]
[1772911499186,0.57156092,1963.7,1962.7,0.51568233]
[1772911499584,0.57156092,1963.7,1962.7,0.52013045]
[1772911500282,0.55724693,1964.0,1962.7,0.52013045]
[1772911500489,0.55724693,1963.8,1962.9,0.51574912]
[1772911500879,0.56202775,1964.1,1963.0,0.53958595]
[1772911501181,0.00478082,1964.1,1963.0,0.53958595]
[1772911501379,4.33855649,1965.0,1963.2,0.53958595]
[1772911501579,0.55724693,1964.8,1963.4,0.53958595]
[1772911501780,0.55724693,1964.8,1963.6,0.53958595]
[1772911502486,0.56290437,1964.8,1963.6,0.53958595]
[1772911502790,0.56290437,1964.8,1963.8,0.52546577]
[1772911502791,0.00565744,1964.8,1963.8,0.52546577]
[1772911503182,0.57899359,1965.1,1963.8,0.52546577]
[1772911504286,0.58270562,1965.1,1963.8,0.52546577]
[1772911504482,0.58270562,1965.1,1963.5,19.904]
[1772911504483,0.00371203,1965.1,1964.2,0.52546577]
[1772911504788,0.57899359,1965.5,1964.4,0.52546577]
[1772911505682,0.00563556,1965.5,1964.4,0.52546577]
[1772911506387,0.00563556,1965.5,1964.6,0.52433113]
[1772911507187,0.57899359,1965.8,1964.6,0.52433113]
[1772911507987,0.00373053,1965.8,1965.0,0.52382928]
[1772911508187,0.00373053,1965.8,1965.1,0.52382928]
[1772911509887,0.58272412,1965.8,1965.1,0.52382928]
[1772911510187,0.58272412,1965.8,1965.2,40.8]
[1772911510393,0.58272412,1965.8,1964.7,0.5229915]
[1772911510794,0.58272412,1965.8,1964.8,40.8]
[1772911510988,0.58272412,1965.8,1964.4,0.52452037]
[1772911510989,0.57899359,1965.6,1964.4,0.52452037]
[1772911511394,0.57899359,1965.6,1964.6,0.52452037]
[1772911513191,0.57899359,1965.4,1964.4,41.32133109]
[1772911513496,0.57899359,1965.4,1964.4,40.8]
[1772911514391,0.57899359,1965.2,1964.4,40.8]
[1772911514796,0.57899359,1965.2,1964.5,0.52506204]
[1772911516597,0.57899359,1965.2,1964.2,0.00359086]
[1772911516789,0.57899359,1965.2,1964.2,0.5286529]
[1772911522501,0.57899359,1965.2,1964.4,0.52538682]
[1772911524600,0.57899359,1965.4,1964.4,0.52538682]
[1772911532104,0.57899359,1965.2,1964.4,0.5227713]
[1772911535701,0.00373053,1965.8,1964.4,0.5227713]
[1772911535906,0.58841048,1965.6,1964.4,0.5227713]
[1772911537407,0.58841048,1965.4,1964.5,0.51338391]
[1772911538505,0.58841048,1965.4,1964.6,0.51338391]
[1772911546720,0.58841048,1965.4,1964.7,0.51590249]
[1772911552918,0.58841048,1965.4,1964.6,0.53128614]
[1772911555821,0.58841048,1965.4,1964.7,0.53161055]
[1772911558224,0.58841048,1965.7,1964.7,0.53161055]
[1772911558924,0.58841048,1965.7,1964.9,0.54665749]
[1772911568523,0.58841048,1965.7,1964.7,22.036]
[1772911568524,0.55250648,1965.5,1964.7,0.55516068]
[1772911574630,0.55250648,1965.5,1964.8,2.37833289]
[1772911574832,0.55250648,1965.5,1964.9,0.56773205]
[1772911579033,0.55250648,1965.5,1964.7,0.56773205]
[1772911579839,0.55250648,1965.3,1964.5,0.56773205]
[1772911580538,0.55250648,1965.3,1964.3,0.56773205]
[1772911580737,0.55250648,1965.3,1964.4,2.38061455]
[1772911581039,0.55250648,1965.3,1964.4,0.56773205]
[1772911581935,0.55250648,1965.1,1964.4,0.56773205]
[1772911582137,0.55250648,1965.1,1964.3,0.56773205]
[1772911582843,0.55250648,1965.1,1964.2,43.18420541]
[1772911583239,0.55250648,1965.1,1964.3,0.56773205]
[1772911588844,0.55250648,1965.1,1964.5,0.56773205]
[1772911591167,7.33228723,1965.0,1964.5,0.56773205]
[1772911591451,0.55250648,1965.0,1964.5,0.56773205]
[1772911592155,0.55250648,1965.0,1964.3,0.5826303]
[1772911592556,0.55728907,1964.8,1964.3,0.5826303]
[1772911595061,0.55728907,1965.0,1964.5,0.57823671]
[1772911596054,0.55728907,1965.0,1964.2,42.61647336]
[1772911596260,0.55728907,1964.8,1964.3,0.57823671]
[1772911598957,0.55728907,1965.0,1964.3,0.57823671]
[1772911599159,0.55728907,1965.1,1964.7,0.58414955]
[1772911599358,0.55728907,1965.1,1964.5,0.58414955]
[1772911599561,0.55728907,1965.1,1964.3,0.58414955]
[1772911599761,0.55728907,1964.9,1964.4,23.10514955]
[1772911600262,0.55728907,1964.9,1964.5,0.58414955]
[1772911601063,0.55728907,1965.1,1964.5,0.58414955]
[1772911601263,7.25756214,1965.0,1964.5,0.58414955]
[1772911601464,0.55728907,1965.0,1964.5,0.58414955]
[1772911602060,0.55728907,1965.0,1964.2,0.58799619]
[1772911602364,0.55728907,1964.8,1964.3,0.58440533]
[1772911602760,1.8128825,1964.5,1963.6,0.5851302]
[1772911602968,0.55728907,1964.3,1963.5,0.58872106]
[1772911603166,0.55728907,1964.3,1963.6,0.58872106]
[1772911603964,0.56182268,1964.3,1963.6,0.59229736]
[1772911608874,0.55728907,1964.2,1963.6,0.0035763]
[1772911611470,0.55728907,1964.2,1963.6,0.59627739]
[1772911613570,0.55728907,1964.2,1963.7,0.59270109]
[1772911614071,0.55728907,1964.2,1963.6,0.0035763]
[1772911614272,0.25908361,1964.3,1963.3,0.59270109]
[1772911614273,0.55728907,1964.0,1963.3,0.59270109]
[1772911614474,0.00453361,1964.3,1962.8,0.59270109]
[1772911614475,0.55728907,1963.8,1962.8,0.59270109]
[1772911614777,0.55728907,1963.8,1963.0,22.545]
[1772911614970,0.55728907,1963.8,1962.9,63.88870109]
[1772911615477,0.55728907,1963.8,1963.0,0.59270109]
[1772911619581,0.55728907,1963.8,1962.9,40.80509099]
[1772911619780,0.55728907,1963.8,1963.0,0.55737226]
[1772911620283,0.55728907,1963.8,1962.9,41.36246325]
[1772911620581,0.55728907,1963.8,1963.0,0.55737226]
[1772911620780,0.55728907,1963.8,1962.9,0.56246325]
[1772911622480,0.56369775,1964.0,1963.0,0.57055106]
[1772911623282,0.56369775,1964.0,1963.2,0.56983537]
[1772911623684,0.56369775,1964.0,1963.3,0.56983537]
[1772911624482,0.56369775,1964.0,1963.5,0.56983537]
[1772911626684,0.56369775,1964.2,1963.9,0.56916474]
[1772911626882,0.56823136,1964.3,1963.9,0.56916474]
[1772911627987,0.00453361,1964.3,1963.9,0.56916474]
[1772911628185,0.56823136,1964.3,1963.9,0.56916474]
[1772911628588,0.56823136,1964.3,1963.6,0.58432248]
[1772911628987,0.56823136,1964.3,1963.7,0.58432248]
[1772911629484,0.56369775,1964.5,1963.9,0.58432248]
[1772911630589,0.56969555,1964.5,1963.9,0.58432248]
[1772911634192,0.56969555,1964.5,1962.9,19.74857575]
[1772911634193,0.56369775,1964.3,1963.3,0.58432248]
[1772911636395,0.56369775,1964.1,1963.3,0.58432248]
[1772911640393,0.56369775,1963.7,1963.0,0.58432248]
[1772911642201,0.56369775,1963.5,1962.9,0.58941347]
[1772911642589,0.56369775,1964.0,1962.9,0.58941347]
[1772911642794,0.56369775,1963.8,1962.9,0.58941347]
[1772911644700,0.56369775,1963.6,1962.9,0.00509099]
[1772911644899,0.56369775,1963.4,1962.2,0.58432248]
[1772911645201,0.56369775,1963.4,1962.4,0.58432248]
[1772911645801,0.56369775,1963.4,1962.4,0.58864852]
[1772911647102,0.56369775,1963.3,1962.4,0.58864852]
[1772911648897,0.56369775,1963.1,1962.4,0.58864852]
[1772911649111,0.25472,1963.0,1962.4,0.00432604]
[1772911649404,0.56369775,1962.9,1962.1,0.58432248]
[1772911649599,0.56369775,1962.7,1961.8,0.81483204]
[1772911649805,0.56369775,1962.5,1961.8,0.81483204]
[1772911650198,0.56369775,1962.5,1961.6,0.58432248]
[1772911650199,0.56369775,1962.3,1961.5,0.58432248]
[1772911650401,6.27313,1960.9,1960.3,11.31415082]
[1772911650609,0.47998402,1960.6,1958.1,0.58432248]
[1772911650901,0.47983323,1960.2,1958.6,0.58432248]
[1772911651103,0.47983323,1960.6,1958.6,0.58432248]
[1772911651305,0.79747869,1960.5,1958.9,0.58432248]
[1772911651498,0.00629098,1960.5,1959.1,0.58432248]
[1772911651700,0.00629098,1960.5,1959.3,0.58432248]
[1772911652403,0.89102344,1960.5,1959.3,0.58432248]
[1772911652606,0.88473246,1960.3,1959.0,0.9101339]
[1772911652903,0.88473246,1960.1,1959.0,0.9101339]
[1772911653503,0.88473246,1960.3,1959.0,0.9101339]
[1772911654802,0.88473246,1960.2,1959.0,0.9101339]
[1772911655606,0.88473246,1960.4,1959.0,0.9101339]
[1772911656607,0.88473246,1960.4,1959.2,0.9101339]
[1772911661401,0.00629098,1960.5,1959.2,0.9101339]
[1772911662005,0.89102344,1960.5,1959.4,0.9101339]
[1772911664210,0.00629098,1960.5,1959.4,0.9101339]
[1772911665815,0.88473246,1960.0,1959.0,0.9101339]
[1772911666208,0.88473246,1960.0,1959.1,0.9101339]
[1772911667205,0.88473246,1959.6,1958.1,0.9101339]
[1772911667405,12.97986,1960.4,1958.1,0.9101339]
[1772911667406,0.88473246,1959.4,1958.1,0.9101339]
[1772911667711,0.88473246,1958.8,1957.7,41.7101339]
[1772911667907,0.88473246,1958.6,1957.3,0.9101339]
[1772911668408,0.89117218,1958.6,1957.5,0.9101339]
[1772911669010,0.88473246,1958.4,1957.3,0.91379979]
[1772911669208,0.88473246,1958.4,1957.3,0.00366589]
[1772911669602,0.88473246,1958.4,1957.3,0.91379979]
[1772911669802,0.00643972,1958.6,1957.3,0.91379979]
[1772911670006,0.89117218,1958.6,1957.4,0.9101339]
[1772911670208,0.88473246,1958.5,1957.3,0.91379979]
[1772911670406,0.88473246,1958.3,1957.3,0.00366589]
[1772911670608,0.88473246,1958.1,1957.3,0.00366589]
[1772911670809,0.88473246,1958.1,1957.3,0.91379979]
[1772911671005,0.88473246,1958.1,1957.3,0.00366589]
[1772911671309,0.88473246,1958.5,1957.3,0.91379979]
[1772911671814,0.00643972,1958.6,1957.3,0.91379979]
[1772911672706,0.00643972,1958.6,1957.5,0.9101339]
[1772911672907,0.88473246,1959.0,1957.5,0.9101339]
[1772911673311,0.88473246,1959.0,1957.7,0.9101339]
[1772911673512,0.88473246,1959.6,1957.7,0.9101339]
[1772911673713,0.88473246,1959.6,1957.8,0.9101339]
[1772911674115,0.88943728,1959.6,1957.8,0.9101339]
[1772911674412,0.88943728,1959.6,1958.2,0.9101339]
[1772911674613,0.88943728,1959.6,1958.1,3.05700477]
[1772911674614,0.88943728,1959.6,1958.4,0.9101339]
[1772911675008,0.00470482,1959.6,1958.4,0.9101339]
[1772911675813,0.88473246,1959.8,1958.4,0.9101339]
[1772911676009,0.88473246,1960.3,1958.4,0.9101339]
[1772911676410,0.88473246,1960.3,1958.6,0.9101339]
[1772911676614,0.88473246,1960.3,1958.7,0.9101339]
[1772911676815,0.88982068,1960.3,1958.7,0.91657328]
[1772911678219,0.88473246,1960.1,1958.9,0.9101339]
[1772911678917,0.88473246,1960.1,1959.1,0.9101339]
[1772911679115,0.79739526,1960.0,1959.1,0.9101339]
[1772911679320,0.88473246,1960.0,1959.1,0.9101339]
[1772911680124,0.79734643,1959.9,1959.1,0.9101339]
[1772911680313,0.88473246,1960.0,1959.1,0.9101339]
[1772911680722,0.79880618,1960.2,1959.1,0.9101339]
[1772911680917,0.79734643,1960.1,1959.1,0.9101339]
[1772911681119,0.00508822,1960.3,1959.1,0.9101339]
[1772911681424,0.8038944,1960.3,1959.1,0.9101339]
[1772911683428,0.8038944,1960.3,1959.3,0.84835103]
[1772911684022,0.83977399,1960.1,1959.3,0.84835103]
[1772911684619,0.84486221,1960.3,1959.3,0.84835103]
[1772911687020,0.00508822,1960.3,1959.3,0.84835103]
[1772911688126,0.83977399,1960.6,1959.3,0.84835103]
[1772911688322,0.25506,1960.4,1959.3,0.84835103]
[1772911688527,0.83977399,1960.2,1959.3,0.84835103]
[1772911688725,0.83977399,1960.2,1959.4,40.8]
[1772911689225,0.84478726,1960.2,1959.4,40.8]
[1772911689426,0.84478726,1960.2,1959.4,41.64835103]
[1772911690629,0.84478726,1960.2,1959.4,0.84835103]
[1772911692124,0.84478726,1960.2,1959.2,0.84835103]
[1772911692528,0.83977399,1959.8,1958.9,0.84835103]
[1772911695434,0.83977399,1959.6,1958.9,0.84835103]
[1772911695635,0.83977399,1959.6,1958.8,41.64835103]
[1772911695837,0.83977399,1959.4,1958.7,0.00643938]
[1772911696037,0.73810414,1959.2,1958.7,0.85479041]
[1772911696238,0.73810414,1959.2,1958.8,0.84835103]
[1772911696943,0.73121128,1959.4,1958.8,0.84835103]
[1772911697342,0.7491203,1959.8,1958.8,0.84835103]
[1772911697543,0.7491203,1959.6,1958.8,0.84835103]
[1772911698137,1.51791805,1959.5,1958.8,0.84835103]
[1772911698338,0.74536737,1959.5,1958.8,0.84835103]
[1772911699937,0.72745474,1960.0,1958.8,0.84835103]
[1772911700142,0.72189603,1959.8,1958.8,0.84835103]
[1772911700444,0.72189603,1959.6,1958.8,0.84835103]
[1772911702049,0.71598452,1960.0,1958.8,0.84835103]
[1772911702249,0.71046239,1959.8,1958.8,0.84835103]
[1772911702448,1.46849981,1959.7,1958.8,0.84835103]
[1772911702748,1.46849981,1959.6,1958.8,0.84835103]
[1772911703047,0.72388036,1960.0,1958.8,0.84835103]
[1772911703250,0.71837644,1959.8,1958.8,0.84835103]
[1772911703452,1.47711052,1959.7,1958.8,0.84835103]
[1772911703647,0.71837644,1959.7,1958.8,0.84835103]
[1772911704343,0.71231254,1959.5,1958.7,0.85479041]
[1772911704546,0.71231254,1959.3,1958.7,0.85479041]
[1772911705948,0.25516,1959.6,1958.7,0.85479041]
[1772911705949,0.70411633,1959.5,1958.7,0.85479041]
[1772911706952,0.70089989,1959.9,1958.7,0.85479041]
[1772911707151,0.69546821,1959.7,1958.7,0.85479041]
[1772911707552,0.69546821,1959.6,1958.7,0.85479041]
[1772911707749,0.69546821,1959.6,1958.8,0.84835103]
[1772911708144,0.69546821,1959.6,1957.6,0.84835103]
[1772911708145,0.2552,1959.3,1957.6,0.84835103]
[1772911708451,0.36213153,1959.4,1957.7,0.84835103]
[1772911708452,0.36213153,1958.7,1957.7,0.84835103]
[1772911708755,0.36213153,1958.5,1957.8,41.64835103]
[1772911709154,0.36755431,1958.5,1957.9,0.84835103]
[1772911709455,0.36755431,1958.5,1957.8,0.0058918]
[1772911709953,0.35866553,1958.3,1957.8,0.0058918]
[1772911710849,0.36188418,1958.1,1957.0,0.84835103]
[1772911711251,0.36188418,1958.1,1957.1,41.64835103]
[1772911711454,0.35644778,1957.9,1956.9,1.67122479]
[1772911711950,0.35591592,1957.7,1957.0,40.8]
[1772911712155,0.35591592,1957.7,1956.9,1.62721916]
[1772911712345,0.35591592,1957.7,1957.0,0.80036208]
[1772911712546,0.2554,1957.8,1957.0,0.80036208]
[1772911712745,0.02273771,1957.7,1956.9,0.82685708]
[1772911712958,0.02205503,1957.5,1956.9,0.82685708]
[1772911713152,0.25545,1957.4,1956.9,0.76472149]
[1772911713454,0.25537,1958.1,1957.0,0.81173977]
[1772911713852,0.25537,1958.1,1957.1,0.76472149]
[1772911714155,0.01725617,1957.6,1956.6,0.8117389]
[1772911714357,0.01725617,1958.3,1956.8,0.8117389]
[1772911714552,0.01725617,1957.9,1956.8,0.8117389]
[1772911714757,0.01265108,1957.5,1956.9,0.76472149]
[1772911715255,0.25542,1957.6,1957.0,0.81404145]
[1772911715449,0.06499651,1957.5,1956.9,0.76472149]
[1772911715657,0.06499651,1957.5,1956.6,0.819743]
[1772911715851,0.06499651,1957.5,1956.7,0.69972498]
[1772911716250,9.09539488,1958.3,1956.7,0.69972498]
[1772911716251,0.25545,1957.4,1956.7,1.5438015]
[1772911716753,0.06486713,1957.3,1956.7,0.69972498]
[1772911716957,0.06486713,1957.3,1956.7,0.81129584]
[1772911717556,0.06380621,1958.0,1956.9,0.81129584]
[1772911718852,0.06380621,1958.0,1957.1,0.80741671]
[1772911719556,0.0603857,1958.0,1957.3,0.80741671]
[1772911719951,0.0603857,1958.0,1957.4,0.69972498]
[1772911720154,0.0603857,1958.0,1957.5,0.80780292]
[1772911720548,0.05947435,1958.5,1957.7,0.80780292]
[1772911721248,0.00542278,1958.5,1957.9,0.79146035]
[1772911721448,0.25527,1958.8,1957.9,0.79146035]
[1772911721853,0.25527,1958.8,1958.1,0.79189955]
[1772911722051,0.09263704,1958.7,1958.1,0.79189955]
[1772911722251,0.09263704,1958.7,1958.2,1.49162453]
[1772911722458,0.25527,1958.8,1958.2,0.79641646]
[1772911722659,0.25527,1958.8,1958.4,0.79189955]
[1772911722854,0.09263704,1958.9,1958.4,0.79189955]
[1772911723055,0.09263704,1958.9,1958.5,0.69972498]
[1772911723658,0.09877919,1958.9,1958.5,0.69972498]
[1772911723960,0.09628157,1959.1,1958.6,0.78748371]
[1772911724358,0.09628157,1959.1,1958.7,0.69972498]
[1772911724557,0.10305891,1959.3,1958.7,1.48720869]
[1772911725160,0.10840972,1959.3,1958.7,1.48720869]
[1772911725354,0.10840972,1959.3,1958.8,0.7779181]
[1772911725755,0.10840972,1959.3,1958.9,0.69972498]
[1772911725957,0.10840972,1959.3,1958.6,0.7779181]
[1772911727162,0.10907204,1959.5,1958.8,0.7779181]
[1772911727860,0.10809326,1959.7,1958.9,0.69972498]
[1772911728161,4.16600371,1960.3,1958.9,0.69972498]
[1772911728162,0.10809326,1959.5,1958.9,0.69972498]
[1772911728364,0.11241272,1959.5,1958.9,0.69972498]
[1772911729465,0.09051567,1959.3,1958.9,0.69972498]
[1772911729763,0.25519,1959.4,1958.9,1.48004229]
[1772911730262,0.08414499,1959.3,1958.9,0.69972498]
[1772911730658,0.08414499,1959.3,1958.3,0.7807612]
[1772911730865,0.08414499,1959.3,1958.8,0.69972498]
[1772911731063,0.08414499,1959.3,1958.8,1.48106864]
[1772911731664,0.0775153,1959.1,1958.3,0.78134366]
[1772911731863,0.0775153,1959.1,1958.3,1.48106864]
[1772911732264,0.0775153,1959.1,1958.4,0.78181653]
[1772911733464,0.0775153,1959.1,1958.5,0.69972498]
[1772911733662,0.0775153,1959.1,1958.5,1.47764308]
[1772911733866,0.25521,1959.2,1958.6,0.7779181]
[1772911735061,0.25524,1959.0,1958.7,0.52855734]
[1772911735266,0.25524,1959.0,1958.3,1.33781912]
[1772911735771,0.25524,1959.0,1958.4,0.80979891]
[1772911737064,0.25524,1959.0,1958.6,0.81037077]
[1772911737465,0.25524,1959.0,1958.8,0.81037077]
[1772911738163,0.25524,1959.0,1958.2,0.00451691]
[1772911738164,0.25524,1959.0,1958.3,0.8097131]
[1772911738466,0.25524,1959.0,1958.5,0.8097131]
[1772911739068,0.00431946,1959.5,1958.6,1.33936084]
[1772911739262,0.00431946,1959.5,1958.6,0.8108035]
[1772911739263,7.86126519,1959.4,1958.6,0.8108035]
[1772911739459,0.25519,1959.4,1958.6,0.8108035]
[1772911742065,0.25519,1959.4,1958.8,0.81229127]
[1772911747270,0.25519,1959.4,1958.9,0.52855734]
[1772911747571,0.70225652,1959.3,1958.9,1.33209301]
[1772911747772,0.25519,1959.4,1958.9,1.33209301]
[1772911747973,0.70225656,1959.3,1958.9,1.33209301]
[1772911748173,0.25519,1959.4,1958.9,1.33209301]
[1772911748473,7.81007058,1959.3,1958.9,0.80353567]
[1772911748671,0.70317019,1959.2,1958.9,0.80353567]
[1772911748873,0.25519,1959.4,1959.0,0.52855734]
[1772911749073,7.80986753,1959.3,1959.0,0.52855734]
[1772911749269,7.80986753,1959.2,1959.0,0.52855734]
[1772911749469,0.25519,1959.4,1959.0,0.52855734]
[1772911749670,0.25521,1959.2,1958.3,0.79813481]
[1772911749871,0.25524,1959.0,1958.3,0.79813481]
[1772911750171,7.81894876,1958.9,1958.3,0.79813481]
[1772911750373,0.25524,1959.0,1958.3,0.79813481]
[1772911750569,7.12272632,1958.9,1958.3,0.79813481]
[1772911750874,0.25524,1959.0,1958.3,0.79813481]
[1772911751076,7.12270892,1958.9,1958.3,0.79813481]
[1772911751271,0.25524,1959.0,1958.3,0.79813481]
[1772911751973,7.06348356,1958.9,1958.3,0.79813481]
[1772911752274,0.81370987,1959.0,1958.3,0.79813481]
[1772911752475,7.0641446,1958.9,1958.3,0.79813481]
[1772911752769,0.81370987,1959.0,1958.3,0.79813481]
[1772911752971,7.06370115,1958.9,1958.3,0.79813481]
[1772911753172,0.25524,1959.0,1958.3,0.79813481]
[1772911756582,0.74058699,1959.3,1958.3,0.79813481]
[1772911756879,0.74058699,1959.1,1958.3,0.79813481]
[1772911757478,0.74058699,1959.0,1958.3,0.79813481]
[1772911758477,0.74058699,1958.6,1958.3,0.79813481]
[1772911758678,0.74058699,1958.6,1958.2,0.00451691]
[1772911758874,0.74058699,1958.6,1958.2,0.7911741]
[1772911759076,0.25528,1958.7,1958.2,0.7911741]
[1772911761086,0.99586699,1958.7,1958.2,0.7911741]
[1772911761283,0.25528,1958.7,1958.2,0.7911741]
[1772911761686,0.74058699,1958.9,1958.2,0.7911741]
[1772911761886,7.01080754,1958.8,1958.2,0.7911741]
[1772911762186,0.74058699,1958.7,1958.2,0.7911741]
[1772911762383,0.74058699,1958.5,1958.2,0.00451691]
[1772911762583,0.74058699,1958.5,1958.0,0.78665719]
[1772911763184,0.25529,1958.6,1958.0,0.78665719]
[1772911763185,0.99587699,1958.6,1958.0,0.78665719]
[1772911763488,0.99587699,1958.6,1958.0,0.79232402]
[1772911764091,0.74058699,1958.5,1958.0,0.79232402]
[1772911764384,0.99587699,1958.6,1958.0,0.79232402]
[1772911764590,0.74058699,1958.4,1958.0,0.79232402]
[1772911764782,0.74058699,1958.4,1958.0,0.78665719]
[1772911764979,0.25529,1958.6,1958.0,0.78665719]
[1772911765180,0.99587699,1958.6,1958.0,0.78665719]
[1772911765689,0.99587699,1958.6,1958.0,0.79137498]
[1772911765884,0.74058699,1958.5,1958.0,0.79137498]
[1772911770196,0.99590699,1958.4,1958.0,0.79137498]
[1772911770594,0.25532,1958.4,1958.0,0.79137498]
[1772911771800,0.74058699,1958.5,1958.0,0.79137498]
[1772911772802,0.99589699,1958.5,1958.0,0.79137498]
[1772911773202,0.77571983,1958.4,1958.0,0.79137498]
[1772911773502,0.77571983,1958.2,1957.8,0.73517849]
[1772911774293,1.03104983,1958.3,1957.8,0.73517849]
[1772911774493,0.77571983,1958.2,1957.8,0.74089477]
[1772911775298,0.25533,1958.3,1957.8,0.74089477]
[1772911775702,1.03104983,1958.3,1957.8,0.74089477]
[1772911775903,0.77571983,1958.2,1957.8,0.74089477]
[1772911777003,0.25533,1958.3,1957.8,0.74089477]
[1772911777603,0.77571983,1958.7,1957.8,0.74089477]
[1772911777895,0.77571983,1958.8,1957.8,0.74089477]
[1772911778098,1.03099983,1958.7,1957.8,0.74089477]
[1772911778799,0.77571983,1959.0,1957.8,0.74089477]
[1772911779095,0.77571983,1958.9,1957.8,0.74089477]
[1772911779300,0.77571983,1958.8,1957.8,0.74089477]
[1772911780107,1.03098983,1958.8,1957.8,0.74089477]
[1772911781404,0.25527,1958.8,1957.8,0.74089477]
[1772911783204,0.77571983,1959.1,1957.8,0.74089477]
[1772911783504,0.77571983,1959.2,1957.8,0.74089477]
[1772911783709,0.77571983,1959.3,1957.8,0.74089477]
[1772911783912,0.77571983,1959.3,1957.9,0.73517849]